bitfinex/quotes_ETHUSD_20260313
["timestamp","ask_amount","ask_price","bid_price","bid_amount"]
[1773364878294,0.4960942,2126.4,2125.8,0.4840416]
[1773364878486,0.002,2126.5,2125.8,0.4840416]
[1773364878487,0.002,2126.5,2126.0,4.65511469]
[1773364879309,0.002,2126.5,2126.0,1.17591721]
[1773364879864,0.002,2126.5,2125.7,0.001]
[1773364879865,0.4960942,2126.4,2125.7,0.001]
[1773364880070,0.54312867,2126.3,2125.7,1.17708244]
[1773364880302,0.54312867,2126.3,2125.7,1.17708288]
[1773364880495,0.54312867,2126.3,2125.7,7.05666895]
[1773364880695,1.66251258,2126.2,2125.7,5.88058607]
[1773364881201,1.66251258,2126.2,2125.8,0.04704111]
[1773364881579,0.002,2126.5,2125.9,0.47871766]
[1773364881784,0.002,2126.5,2126.0,0.04703668]
[1773364881785,1.17764915,2126.5,2126.0,0.04703668]
[1773364881984,1.17764915,2126.5,2126.0,1.57503668]
[1773364882181,0.002,2126.5,2126.1,5.87958607]
[1773364882384,0.002,2126.5,2126.2,0.04703226]
[1773364882586,0.002,2126.5,2126.2,1.22279237]
[1773364883185,0.002,2126.5,2126.2,0.04703226]
[1773364883575,0.002,2126.5,2126.3,5.87958607]
[1773364884614,0.48870598,2126.5,2126.3,5.87958607]
[1773364884776,1.17569601,2126.4,2126.0,1.528]
[1773364884977,1.17569601,2126.4,2125.9,1.17696491]
[1773364884978,0.48670598,2126.3,2125.9,0.001]
[1773364885886,0.48670598,2126.3,2125.9,1.17694653]
[1773364886078,1.17769601,2126.4,2126.0,0.04703668]
[1773364886298,0.002,2126.4,2126.0,0.04703668]
[1773364886812,0.002,2126.4,2125.9,6.8565326]
[1773364887013,0.002,2126.4,2125.9,5.68058607]
[1773364887305,0.48670598,2126.3,2125.9,5.68058607]
[1773364887616,0.48670598,2126.3,2125.7,0.001]
[1773364887831,0.48670598,2126.3,2125.6,0.001]
[1773364887832,0.48670598,2126.0,2125.4,0.001]
[1773364887993,0.48670598,2126.0,2125.4,5.68058607]
[1773364888199,0.48670598,2126.0,2125.2,0.001]
[1773364888496,0.48670598,2125.8,2125.1,0.001]
[1773364889033,0.48670598,2125.8,2124.7,0.001]
[1773364889034,0.48670598,2125.3,2124.7,0.001]
[1773364889396,0.48670598,2125.3,2124.4,3.70141946]
[1773364889397,0.48670598,2125.0,2124.4,1.00064408]
[1773364890232,2.63608317,2125.7,2124.4,2.17743442]
[1773364890233,0.48670598,2125.3,2124.4,2.17743442]
[1773364890536,0.48670598,2125.3,2124.5,0.04706989]
[1773364890827,0.48670598,2125.3,2124.4,4.18215208]
[1773364891500,0.48670598,2125.3,2124.4,3.70343442]
[1773364891501,0.48670598,2125.1,2124.4,3.70343442]
[1773364891932,0.48670598,2125.1,2124.4,3.70344426]
[1773364893232,0.48670598,2125.1,2124.4,1.00064408]
[1773364893603,0.48670598,2124.9,2124.4,1.00064408]
[1773364894227,0.48670598,2124.9,2124.0,0.001]
[1773364894228,0.48670598,2124.8,2124.0,0.001]
[1773364894734,0.48670598,2124.5,2124.0,0.001]
[1773364894919,0.48670598,2124.3,2124.0,0.001]
[1773364895424,0.48670598,2124.7,2124.0,0.001]
[1773364895619,0.48670598,2124.7,2124.0,0.04808097]
[1773364895620,1.17669208,2124.6,2124.0,0.04808097]
[1773364896022,1.17669208,2124.6,2124.0,1.22507475]
[1773364896202,1.17669208,2124.6,2124.0,1.17802034]
[1773364896409,1.17669208,2124.6,2124.1,0.04707876]
[1773364896628,1.17669208,2124.6,2124.0,1.17802034]
[1773364896827,1.17669208,2124.6,2124.0,1.17801398]
[1773364897636,1.17669208,2124.6,2124.0,0.001]
[1773364898142,1.66339806,2124.6,2124.0,0.001]
[1773364898440,0.48670598,2124.2,2123.8,0.001]
[1773364899746,0.48670598,2124.0,2123.7,0.001]
[1773364901316,0.48670598,2124.0,2123.5,0.001]
[1773364901612,1.66378588,2123.9,2123.0,1.65625512]
[1773364901817,0.48670598,2123.8,2123.0,1.65625512]
[1773364903533,4.70787627,2124.2,2122.9,4.71042185]
[1773364903534,0.47864355,2124.3,2123.4,1.17735706]
[1773364903733,0.52567802,2124.3,2123.4,1.63699263]
[1773364905232,4.70743303,2124.5,2123.6,0.45963557]
[1773364905407,0.47864355,2124.4,2123.7,0.04708763]
[1773364905607,1.6555018,2124.3,2123.7,1.22424071]
[1773364905802,0.52567802,2124.2,2123.3,1.63699263]
[1773364906036,0.52567802,2124.2,2123.4,6.23935178]
[1773364906237,0.47864355,2124.4,2123.5,0.45963557]
[1773364906490,0.47864355,2124.2,2123.2,1.63705905]
[1773364906843,0.47864355,2124.2,2123.3,0.0470965]
[1773364907836,0.47864355,2124.0,2123.2,1.63709497]
[1773364908340,0.47864355,2124.0,2123.1,1.17748262]
[1773364908532,1.17696906,2124.1,2123.3,0.45963557]
[1773364908838,1.17696906,2124.1,2123.4,0.50672985]
[1773364909335,0.47864355,2124.0,2123.4,0.04709428]
[1773364909539,2.99515588,2123.9,2122.8,3.16932541]
[1773364909754,1.6558343,2123.7,2122.8,3.16932541]
[1773364910354,0.47864355,2123.5,2122.6,2.67992403]
[1773364910525,0.47864355,2123.2,2122.5,0.33277972]
[1773364910846,5.99031176,2123.5,2122.5,0.33277972]
[1773364910847,0.48551555,2123.0,2122.5,0.33277972]
[1773364911145,0.48551555,2123.0,2122.2,0.04712091]
[1773364911457,0.48551555,2123.0,2121.9,1.63692508]
[1773364911621,0.48551555,2123.0,2122.0,0.04712535]
[1773364911821,1.17762125,2123.0,2122.8,0.001]
[1773364912022,1.17762125,2123.0,2122.1,0.45875595]
[1773364912222,1.17762125,2123.0,2122.0,4.17328971]
[1773364912223,1.6631368,2123.0,2122.5,0.001]
[1773364912943,1.66276173,2123.6,2122.5,0.45975595]
[1773364913139,1.66276173,2123.6,2122.6,0.50586798]
[1773364913339,0.48551555,2123.5,2122.6,0.50586798]
[1773364914426,2.99515588,2122.9,2121.6,11.57339]
[1773364914626,0.48551555,2123.1,2121.9,0.45875595]
[1773364915755,0.48551555,2123.1,2122.0,0.5058813]
[1773364915952,0.48551555,2123.1,2122.2,0.45875595]
[1773364916125,0.04711203,2123.3,2122.3,0.50587464]
[1773364916538,1.17746797,2123.2,2122.5,0.45875595]
[1773364916758,1.17730162,2123.5,2122.6,0.50586798]
[1773364917324,1.49638483,2123.7,2122.8,0.45875595]
[1773364917638,1.49638483,2123.7,2123.0,0.45875595]
[1773364917639,0.04711203,2123.6,2123.0,0.45875595]
[1773364918530,0.04711203,2123.6,2123.1,1.17752343]
[1773364919028,0.04711203,2123.6,2123.0,1.6363126]
[1773364919351,0.04711203,2123.6,2123.1,0.50585688]
[1773364919530,0.31916705,2123.7,2123.1,0.50585688]
[1773364919926,0.48551555,2124.3,2123.2,0.45875595]
[1773364920267,0.04711203,2124.2,2123.3,0.45875595]
[1773364920632,0.04711203,2124.2,2123.5,0.45875595]
[1773364920847,0.04711203,2124.2,2123.1,4.70942827]
[1773364920848,0.48551555,2124.1,2122.9,0.45875595]
[1773364921160,0.48551555,2124.2,2123.2,0.45875595]
[1773364921361,0.76717397,2124.2,2123.2,0.45875595]
[1773364921735,0.04711203,2124.1,2123.4,0.45875595]
[1773364922033,0.53262758,2124.3,2123.4,0.45875595]
[1773364922862,1.17691366,2124.2,2123.4,0.45875595]
[1773364923036,0.48551555,2124.0,2123.0,2.71353491]
[1773364923238,0.48551555,2123.8,2123.0,2.71353491]
[1773364923547,0.04711203,2123.7,2123.0,2.71353491]
[1773364924258,0.48551555,2123.5,2122.1,2.99515588]
[1773364924433,0.48551555,2123.0,2121.8,0.45875595]
[1773364924633,0.48551555,2122.8,2121.8,1.99475595]
[1773364925166,1.17774532,2122.7,2121.9,0.02358821]
[1773364925371,1.17757889,2123.0,2122.1,0.45875595]
[1773364925571,1.17757889,2123.0,2122.2,0.02357377]
[1773364925945,1.17757889,2123.0,2122.9,0.001]
[1773364926446,5.25470731,2123.1,2122.9,0.001]
[1773364926447,1.17755542,2123.1,2122.9,0.001]
[1773364927255,1.17741251,2123.3,2122.9,0.001]
[1773364927473,0.05887339,2123.2,2122.9,0.001]
[1773364927844,0.05887339,2123.2,2122.0,1.1780877]
[1773364927845,0.54438894,2123.2,2122.0,1.1780877]
[1773364928071,0.48551555,2122.9,2122.0,1.536]
[1773364928270,3.00584142,2123.0,2121.5,1.63713337]
[1773364928271,0.48551555,2122.7,2121.5,1.63713337]
[1773364928446,3.49135697,2122.5,2121.6,1.536]
[1773364928653,0.48551555,2122.4,2121.4,2.7144301]
[1773364929272,1.17796729,2122.3,2121.4,2.7144301]
[1773364932251,1.66348284,2122.3,2121.4,2.7144301]
[1773364933178,4.66932426,2122.3,2121.4,1.536]
[1773364933473,1.66348284,2122.3,2121.5,0.02361264]
[1773364933848,1.90152646,2122.3,2121.5,1.20197991]
[1773364934573,1.41601091,2122.3,2121.5,1.66073586]
[1773364934871,1.41601091,2122.3,2121.6,1.535]
[1773364935277,1.41601091,2122.3,2121.7,0.02360597]
[1773364935985,1.41601091,2122.3,2121.7,1.20185597]
[1773364936187,1.41601091,2122.3,2121.7,0.02360597]
[1773364936505,1.41601091,2122.3,2121.5,2.71238024]
[1773364937176,1.90152646,2122.3,2121.5,2.71238024]
[1773364937350,0.05890114,2122.2,2121.5,2.71238024]
[1773364937673,0.05890114,2122.2,2121.5,3.17113619]
[1773364938058,1.41601091,2122.3,2121.7,1.63705636]
[1773364938059,1.41601367,2122.3,2121.7,1.63705636]
[1773364938456,1.41601367,2122.3,2121.7,1.66166011]
[1773364939178,1.41601367,2122.3,2121.7,1.20290416]
[1773364939473,0.05890114,2122.2,2121.7,0.02460375]
[1773364939880,0.05890114,2122.2,2121.7,1.55760597]
[1773364940083,1.17807831,2122.1,2121.7,1.55760597]
[1773364940266,0.05890669,2122.0,2121.7,1.55760597]
[1773364940472,0.05890669,2122.0,2121.7,0.02460597]
[1773364940667,0.05890669,2122.0,2121.7,0.001]
[1773364940852,0.05890669,2122.0,2121.7,1.534]
[1773364941258,0.05890669,2122.0,2121.7,0.001]
[1773364941555,0.05890669,2122.0,2121.7,2.71129992]
[1773364941880,1.17807831,2122.1,2121.7,1.58013201]
[1773364942065,1.17807831,2122.1,2121.6,1.532]
[1773364942066,0.03530627,2122.0,2121.6,1.532]
[1773364942464,0.03530627,2122.0,2120.4,0.46460371]
[1773364942465,0.48382966,2121.7,2120.4,0.46460371]
[1773364942663,3.00584142,2121.5,2120.6,3.17547754]
[1773364942863,3.00584142,2121.5,2120.7,1.50050885]
[1773364943087,0.48382966,2121.6,2120.8,0.001]
[1773364943287,0.48382966,2121.6,2120.8,1.56515201]
[1773364943458,3.48967108,2121.9,2120.8,2.02975572]
[1773364943661,3.48967108,2121.9,2120.9,0.46460371]
[1773364943883,3.48967108,2121.9,2121.0,0.04714757]
[1773364944062,0.48382966,2121.8,2121.0,0.04714757]
[1773364944259,1.17830041,2121.7,2121.0,1.22580731]
[1773364944482,0.48382966,2121.6,2121.1,0.001]
[1773364945679,1.17828221,2121.8,2121.1,0.04814534]
[1773364946064,1.66211187,2121.8,2121.1,0.04814534]
[1773364946263,0.48382966,2121.7,2121.1,0.04814534]
[1773364946502,0.48382966,2121.7,2121.1,0.001]
[1773364946669,3.48967108,2121.7,2121.1,0.001]
[1773364946873,3.00584142,2121.5,2120.5,1.17894602]
[1773364947070,3.00584142,2121.1,2120.4,1.521]
[1773364947272,6.01168284,2121.5,2119.5,0.46460371]
[1773364947273,0.48382966,2120.8,2119.5,0.46460371]
[1773364947481,3.00584142,2121.1,2119.9,0.46460371]
[1773364947794,3.04114769,2121.7,2120.5,0.46460371]
[1773364948005,3.04114769,2121.7,2120.7,0.46460371]
[1773364948206,3.04114769,2121.7,2120.8,1.516]
[1773364948393,3.04114769,2121.7,2120.8,1.98060371]
[1773364948694,3.04114769,2121.7,2120.8,3.16035779]
[1773364948695,1.17835595,2121.6,2120.8,3.16035779]
[1773364948871,0.03530627,2121.5,2120.8,3.16035779]
[1773364949698,0.51913593,2121.5,2120.9,0.001]
[1773364949870,3.52497735,2121.5,2120.9,0.001]
[1773364950472,1.17835595,2121.6,2120.9,1.22684929]
[1773364951293,0.03530627,2121.5,2120.9,0.04814979]
[1773364951491,3.48967108,2121.2,2120.4,1.521]
[1773364951681,3.48967108,2121.2,2120.7,0.001]
[1773364952171,0.48382966,2121.1,2120.7,0.001]
[1773364952680,1.17868929,2121.0,2120.7,0.001]
[1773364952872,1.66235226,2121.4,2120.7,0.001]
[1773364953069,3.48967108,2121.7,2120.7,0.46560371]
[1773364953313,1.17830424,2121.7,2120.8,0.51175572]
[1773364953511,1.17830424,2121.7,2120.8,0.46460371]
[1773364953512,0.03530627,2121.6,2120.8,0.46460371]
[1773364953807,0.03530627,2121.6,2120.9,0.46560371]
[1773364954269,0.03530627,2121.6,2121.0,1.524]
[1773364954472,0.03530627,2121.6,2121.1,0.001]
[1773364954671,1.17835984,2121.6,2121.1,1.17963372]
[1773364954907,0.03530627,2121.5,2121.1,1.17963372]
[1773364955388,7.38036875,2122.1,2121.1,1.64423743]
[1773364955389,2.66805208,2122.1,2121.1,1.64423743]
[1773364955588,0.03530627,2122.0,2121.2,0.46560371]
[1773364955789,0.03530627,2122.3,2121.2,0.46560371]
[1773364956300,0.51913593,2122.3,2121.2,0.46560371]
[1773364956799,1.21331004,2122.3,2121.4,0.46460371]
[1773364957786,1.45029349,2122.3,2121.5,0.001]
[1773364957986,1.41498722,2122.3,2121.5,0.46560371]
[1773364958186,1.41498722,2122.3,2121.5,0.46460371]
[1773364958486,1.41498722,2122.3,2121.6,0.001]
[1773364958687,1.41498722,2122.3,2121.7,1.528]
[1773364959102,0.03530627,2122.2,2121.8,0.001]
[1773364959279,0.03530627,2122.2,2121.5,1.528]
[1773364960594,0.03530627,2122.2,2121.5,1.525]
[1773364961105,1.17807831,2122.1,2121.5,2.70336237]
[1773364961301,0.03530627,2122.0,2121.6,0.001]
[1773364962381,0.51913593,2122.0,2121.6,0.001]
[1773364963213,1.17816299,2122.0,2121.6,0.001]
[1773364963715,1.21346926,2122.0,2121.6,0.001]
[1773364965896,3.46634709,2121.9,2121.1,1.526]
[1773364966215,0.46050567,2121.6,2121.1,1.526]
[1773364966418,0.49581194,2121.6,2121.1,1.526]
[1773364966618,0.46050567,2121.4,2120.5,0.001]
[1773364966917,0.46050567,2121.2,2120.5,0.001]
[1773364967226,3.46634709,2121.2,2120.6,0.001]
[1773364967390,1.17863372,2121.1,2120.6,0.001]
[1773364967589,1.63913939,2121.1,2120.6,0.001]
[1773364968517,0.46050567,2120.9,2120.5,0.001]
[1773364969523,1.17880045,2120.8,2120.5,0.001]
[1773364969719,4.71467247,2121.1,2120.5,0.001]
[1773364970304,5.17517814,2121.1,2120.5,0.001]
[1773364970523,3.48599374,2120.9,2120.5,0.001]
[1773364970820,0.48015232,2120.8,2120.5,0.001]
[1773364970996,3.00584142,2120.9,2120.5,0.001]
[1773364971431,3.48599374,2120.9,2120.5,0.001]
[1773364971730,1.17880045,2120.8,2120.5,0.001]
[1773364971896,1.17868929,2121.0,2120.5,0.001]
[1773364974230,1.17868929,2121.0,2120.4,0.001]
[1773364974231,0.48015232,2120.8,2120.4,0.001]
[1773364974601,1.17868929,2121.0,2120.4,0.001]
[1773364974928,1.65884161,2121.0,2120.4,0.001]
[1773364975138,0.48015232,2120.8,2120.4,0.001]
[1773364975629,1.17868929,2121.0,2120.4,0.001]
[1773364975931,0.48015232,2120.5,2119.6,0.49657311]
[1773364976299,7.72104323,2120.9,2119.5,1.17948302]
[1773364976300,4.71476274,2121.0,2119.8,0.49657311]
[1773364976500,0.03530627,2120.9,2120.0,0.49657311]
[1773364976727,0.03530627,2120.9,2120.1,0.54374069]
[1773364976939,0.03530627,2120.9,2120.1,0.49657311]
[1773364978228,1.17880045,2120.8,2120.1,1.67572326]
[1773364978428,0.03530627,2120.7,2120.1,0.49657311]
[1773364978604,0.03530627,2120.7,2120.1,1.67572926]
[1773364978927,1.17878794,2120.9,2120.2,0.54373847]
[1773364979229,0.03530627,2120.8,2120.2,0.54373847]
[1773364980833,1.21411234,2120.8,2120.3,1.17907843]
[1773364981036,0.03530627,2120.8,2120.3,1.67565154]
[1773364981211,1.41036974,2121.1,2120.4,0.54373402]
[1773364981423,1.17835595,2121.6,2120.6,0.49657311]
[1773364981613,0.03530627,2121.5,2120.6,0.49657311]
[1773364981819,0.03530627,2121.5,2120.8,0.49657311]
[1773364982230,0.002,2121.4,2120.8,0.49657311]
[1773364983002,0.002,2121.4,2120.5,2.67579632]
[1773364983208,3.00584142,2121.3,2120.5,4.70236943]
[1773364983522,3.00584142,2121.3,2120.3,4.71717602]
[1773364983523,3.00584142,2121.1,2120.3,0.001]
[1773364983723,0.03530627,2121.0,2120.3,0.001]
[1773364983926,3.48599374,2120.9,2120.3,0.001]
[1773364984134,0.002,2121.4,2120.4,0.49657311]
[1773364984322,0.002,2121.4,2120.5,0.54373179]
[1773364984916,0.002,2121.4,2120.7,0.49657311]
[1773364985117,0.002,2121.4,2120.9,0.49657311]
[1773364985312,0.03730627,2121.4,2121.0,0.49657311]
[1773364985642,0.002,2121.4,2121.0,0.49657311]
[1773364986735,0.002,2121.4,2120.9,1.53]
[1773364987038,0.002,2121.4,2120.9,1.531]
[1773364987626,0.002,2121.4,2121.0,1.17868929]
[1773364987829,0.002,2121.4,2121.0,1.6752624]
[1773364988027,0.03730627,2121.6,2121.1,0.49657311]
[1773364988422,1.21566281,2121.6,2121.1,0.49657311]
[1773364988623,1.21566281,2121.6,2120.7,0.49657311]
[1773364988918,1.21566281,2121.6,2121.0,1.532]
[1773364989238,3.00994802,2121.3,2120.6,1.532]
[1773364989410,0.03530627,2121.2,2120.4,1.67557475]
[1773364989612,1.17863372,2121.1,2120.5,2.75808691]
[1773364989813,3.00994802,2121.3,2120.6,0.49657311]
[1773364989814,0.03530627,2121.3,2120.6,0.49657311]
[1773364990054,0.03530627,2121.4,2120.8,0.49657311]
[1773364990252,0.03530627,2121.3,2120.6,0.49657311]
[1773364990418,3.49010034,2121.3,2120.5,1.57915868]
[1773364991529,0.03530627,2121.2,2120.6,0.49657311]
[1773364991734,1.18035923,2121.6,2120.8,0.49657311]
[1773364992232,0.03530627,2121.5,2120.8,0.49657311]
[1773364992441,0.03530627,2121.5,2120.9,0.5437229]
[1773364992621,0.03530627,2121.5,2120.9,0.49657311]
[1773364992945,1.18035923,2121.6,2120.9,0.49657311]
[1773364993141,0.03530627,2121.5,2120.9,0.49657311]
[1773364994346,0.03530627,2121.5,2121.0,1.533]
[1773364994347,1.17846698,2121.5,2121.0,1.533]
[1773364994543,0.002,2121.6,2121.1,0.49657311]
[1773364994746,0.002,2121.8,2121.1,0.49657311]
[1773364995135,0.002,2121.8,2121.2,0.49657311]
[1773364996947,0.002,2121.8,2121.2,1.67510989]
[1773364997249,0.002,2121.8,2121.3,1.533]
[1773364997545,0.002,2121.4,2121.3,2.02957311]
[1773364997719,0.002,2121.8,2121.3,2.02957311]
[1773364998251,0.002,2121.6,2121.3,2.02957311]
[1773364999257,0.002,2121.6,2121.2,1.533]
[1773364999748,0.002,2121.6,2121.0,1.533]
[1773365000359,0.002,2121.6,2121.1,0.49657311]
[1773365002927,0.002,2121.6,2121.0,2.71167699]
[1773365003831,0.002,2121.6,2120.8,1.6714846]
[1773365004033,0.45785263,2121.6,2120.8,3.2044846]
[1773365004329,0.45785263,2121.6,2120.8,3.20451065]
[1773365004752,0.45585263,2121.3,2120.6,0.001]
[1773365006955,1.17857816,2121.2,2120.6,0.001]
[1773365007130,1.63443079,2121.2,2120.5,1.533]
[1773365008671,0.45585263,2121.1,2120.5,1.533]
[1773365008872,0.45585263,2121.1,2120.4,1.534]
[1773365009036,1.17868929,2121.0,2120.4,1.534]
[1773365009573,1.17868929,2121.0,2120.4,0.001]
[1773365009862,1.17868929,2121.0,2120.4,1.534]
[1773365010661,1.17867698,2121.1,2120.5,0.53989273]
[1773365010967,1.41454077,2121.3,2120.5,0.53989273]
[1773365011174,1.41454077,2121.3,2120.6,1.17891162]
[1773365011369,1.41454077,2121.3,2120.7,0.04715424]
[1773365011837,0.23597358,2121.3,2120.7,0.04715424]
[1773365012035,1.1803953,2121.6,2120.7,0.53988829]
[1773365012257,1.1803953,2121.6,2120.7,0.49273405]
[1773365012473,1.1803953,2121.6,2120.7,0.49373405]
[1773365012753,3.46580065,2121.3,2120.7,0.001]
[1773365012967,3.46580065,2121.3,2120.7,1.533]
[1773365013172,0.45585263,2121.3,2120.7,1.533]
[1773365013354,1.17857816,2121.2,2120.7,2.71184757]
[1773365013669,1.17857816,2121.2,2120.7,1.533]
[1773365014236,4.71396559,2121.4,2120.7,2.7118537]
[1773365014461,4.71396559,2121.4,2120.8,0.49273405]
[1773365014639,1.1784115,2121.5,2120.8,0.49273405]
[1773365015540,4.71561178,2121.6,2120.9,1.67147892]
[1773365016544,1.18035595,2121.6,2120.9,1.67147892]
[1773365016746,1.18035595,2121.6,2121.0,0.49273405]
[1773365017875,1.18035595,2121.6,2121.1,1.17863372]
[1773365018073,1.18035595,2121.6,2120.8,4.71504481]
[1773365018372,1.63620858,2121.6,2120.8,4.71504481]
[1773365019563,1.63620858,2121.6,2120.7,3.2045345]
[1773365019564,3.46580065,2121.5,2120.9,1.531]
[1773365019764,3.46580065,2121.5,2120.7,0.49373405]
[1773365019765,0.45585263,2121.4,2120.7,0.001]
[1773365020077,1.1785226,2121.3,2120.8,1.531]
[1773365021173,1.1785226,2121.3,2120.7,0.001]
[1773365021174,1.63437523,2121.3,2120.7,1.531]
[1773365021352,1.1785226,2121.3,2120.7,1.531]
[1773365022359,4.71409041,2121.4,2120.7,2.70980555]
[1773365023664,4.71409041,2121.4,2120.8,1.53]
[1773365024485,4.71409041,2121.4,2120.8,2.70879057]
[1773365024652,5.17058296,2121.4,2120.8,1.53]
[1773365024853,5.17058296,2121.4,2120.8,2.7087968]
[1773365025182,5.17058296,2121.4,2120.8,1.53]
[1773365025678,0.45649255,2121.3,2120.8,1.53]
[1773365025978,0.45649255,2121.1,2120.7,0.001]
[1773365026283,3.46644057,2121.0,2120.7,0.001]
[1773365026609,1.17873085,2121.0,2120.7,0.001]
[1773365027059,4.71438258,2121.2,2120.7,0.001]
[1773365027453,4.71438258,2121.2,2120.8,0.001]
[1773365027652,4.71638258,2121.2,2120.8,0.001]
[1773365028177,5.17287513,2121.2,2120.8,0.001]
[1773365028490,1.17866625,2121.1,2120.8,0.001]
[1773365028876,1.18061237,2121.2,2120.8,0.001]
[1773365029890,0.45649255,2121.1,2120.8,0.001]
[1773365030289,1.18061237,2121.2,2120.8,0.001]
[1773365030485,0.002,2121.2,2120.8,0.001]
[1773365030858,0.4837787,2121.2,2120.7,0.001]
[1773365031063,0.4817787,2121.0,2120.7,0.001]
[1773365033789,1.17874487,2120.9,2120.7,0.001]
[1773365034793,1.66052357,2120.9,2120.7,0.001]
[1773365036493,1.17874487,2120.9,2120.7,0.001]
[1773365037788,1.66041242,2121.1,2120.7,0.001]
[1773365039401,0.4817787,2121.0,2120.7,0.001]
[1773365039771,1.17874487,2120.9,2120.7,0.001]
[1773365040596,0.4817787,2120.8,2120.0,0.4502518]
[1773365040799,3.49172672,2120.6,2120.0,1.9752518]
[1773365041191,3.00994802,2120.8,2120.1,0.4502518]
[1773365041390,10.73484557,2121.0,2120.1,0.4502518]
[1773365041391,1.17873022,2121.0,2120.1,0.4502518]
[1773365041775,1.17885603,2120.7,2120.1,1.62942191]
[1773365042101,1.66063473,2120.7,2120.1,1.62942191]
[1773365042599,1.66063473,2120.7,2119.8,4.71740858]
[1773365042600,0.4817787,2120.6,2120.3,0.001]
[1773365042901,0.4817787,2120.5,2120.3,0.001]
[1773365043303,0.4817787,2120.3,2119.6,1.9742518]
[1773365043800,0.4817787,2120.3,2119.8,0.001]
[1773365043993,1.17913404,2120.2,2119.8,0.001]
[1773365045805,1.66091274,2120.2,2119.8,0.001]
[1773365047905,4.71653617,2120.3,2119.8,0.001]
[1773365050014,3.01421638,2120.2,2119.8,0.001]
[1773365050191,0.4817787,2119.8,2118.2,0.4502518]
[1773365050510,3.49599508,2119.9,2119.1,0.4502518]
[1773365050711,3.49599508,2120.1,2119.1,0.4502518]
[1773365052113,3.49599508,2120.1,2118.9,6.24130479]
[1773365052114,0.4817787,2119.8,2118.6,0.4502518]
[1773365052284,0.4817787,2119.6,2118.6,5.17017219]
[1773365052478,7.20767804,2120.0,2118.8,0.4502518]
[1773365052479,3.49599508,2119.9,2118.8,0.4502518]
[1773365052699,0.4817787,2119.8,2118.8,0.4502518]
[1773365052879,0.4817787,2119.6,2118.9,1.522]
[1773365053305,0.4817787,2119.6,2118.7,1.9722518]
[1773365053811,0.4817787,2119.6,2118.8,0.4502518]
[1773365054011,0.4817787,2119.9,2118.8,0.4502518]
[1773365054212,0.4817787,2119.7,2118.9,1.9712518]
[1773365054516,0.4817787,2119.7,2118.9,1.521]
[1773365055206,0.4817787,2119.7,2118.9,1.9712518]
[1773365055525,1.66110697,2119.9,2119.0,0.4502518]
[1773365056316,0.4817787,2119.8,2119.0,1.63001197]
[1773365056483,0.4817787,2119.8,2119.1,0.4512518]
[1773365057813,0.4817787,2119.8,2119.1,0.001]
[1773365058015,0.4817787,2119.6,2119.1,0.001]
[1773365058214,1.66130217,2119.5,2119.1,0.001]
[1773365059209,0.4817787,2119.4,2119.1,0.001]
[1773365059914,1.17947392,2119.6,2119.1,0.001]
[1773365060226,0.4817787,2119.5,2119.1,0.001]
[1773365060521,1.17957912,2119.4,2119.1,0.001]
[1773365062817,1.65670139,2119.7,2119.1,0.001]
[1773365063621,1.17939082,2119.8,2119.1,1.99259568]
[1773365063804,1.89440038,2119.9,2119.1,1.99259568]
[1773365064819,7.73078725,2120.2,2119.3,0.47259568]
[1773365064820,1.65639768,2120.2,2119.3,0.47259568]
[1773365065028,1.17914803,2120.2,2119.3,0.47259568]
[1773365065721,1.17911016,2120.3,2119.5,0.47259568]
[1773365065925,1.65616127,2120.6,2119.5,0.47259568]
[1773365066521,0.47724965,2120.5,2119.5,0.47259568]
[1773365067327,0.47724965,2120.5,2119.6,1.17946782]
[1773365067328,1.17902282,2120.4,2119.6,1.17946782]
[1773365067506,1.17902282,2120.4,2119.6,1.6520635]
[1773365067823,1.17895762,2120.6,2119.7,0.47259568]
[1773365068025,1.17895762,2120.6,2119.9,0.47259568]
[1773365068795,1.65808968,2120.8,2119.9,0.47259568]
[1773365069506,0.47924965,2120.8,2120.1,0.47259568]
[1773365069707,0.002,2120.8,2120.1,0.47259568]
[1773365070104,1.18080864,2120.8,2120.1,0.47259568]
[1773365070936,0.002,2120.4,2120.1,0.47259568]
[1773365071617,0.002,2120.4,2120.1,2.69416769]
[1773365072830,0.002,2120.4,2120.2,0.47259568]
[1773365073737,0.002,2120.4,2120.2,1.65172067]
[1773365073909,0.002,2120.4,2120.1,2.69414861]
[1773365074220,0.002,2120.4,2119.9,1.514]
[1773365074422,0.47924965,2120.4,2119.4,1.6521748]
[1773365074727,0.47924965,2120.4,2119.5,1.513]
[1773365075130,0.47724965,2120.3,2119.6,1.513]
[1773365075806,1.17913404,2120.2,2119.4,1.6521748]
[1773365076006,1.17913404,2120.2,2119.5,1.513]
[1773365076410,1.65638369,2120.2,2119.5,1.513]
[1773365076833,0.47724965,2120.1,2119.5,1.513]
[1773365077034,1.17913404,2120.2,2119.6,1.513]
[1773365077209,0.47724965,2120.1,2119.6,1.513]
[1773365077409,0.47724965,2120.1,2119.5,1.513]
[1773365077635,0.47724965,2120.1,2119.3,0.001]
[1773365077933,0.47724965,2119.9,2119.3,2.6936342]
[1773365078737,0.47724965,2119.9,2119.3,2.6926342]
[1773365079242,1.18106564,2120.4,2119.7,0.47259568]
[1773365079407,0.47924965,2120.4,2119.7,0.47259568]
[1773365079608,0.47724965,2120.2,2119.7,1.512]
[1773365080020,0.47724965,2119.7,2119.3,0.001]
[1773365080622,1.65638933,2120.2,2119.4,0.47259568]
[1773365081227,1.18106555,2120.4,2119.4,0.47259568]
[1773365082017,0.002,2120.4,2119.6,3.01421638]
[1773365082222,0.002,2120.4,2119.7,0.47259568]
[1773365082436,1.17888566,2120.7,2120.1,0.47259568]
[1773365083041,0.47924965,2120.8,2120.1,0.47259568]
[1773365083244,0.002,2120.8,2120.1,0.47259568]
[1773365084124,0.002,2120.8,2120.2,1.64639035]
[1773365084646,0.002,2120.8,2120.3,1.511]
[1773365084848,0.002,2120.5,2120.3,1.511]
[1773365085620,0.002,2120.5,2120.3,1.51]
[1773365085845,0.002,2120.5,2120.0,0.46725631]
[1773365086148,1.6321873,2120.4,2119.9,1.51]
[1773365086440,1.6321873,2120.4,2119.3,1.64787016]
[1773365086441,0.45316448,2120.3,2119.3,1.64787016]
[1773365086671,0.45316448,2120.2,2119.6,1.51]
[1773365088349,1.17918966,2120.1,2119.3,1.64783543]